{"text_format":"3","workbook":"xlsx","n_sheets":4,"sheets":["Φόρμα προσφοράς","Δεδομένα γραφήματος","Ανάλυση κόστους","Σύνοψη κόστους προσφοράς"],"not_rendered":{"charts":1,"images":2,"defined_names":11},"read":"whole","date_system":"1900"}

{"sheet":"Φόρμα προσφοράς","index":0,"n_rows":21,"n_cols":6,"rows_kept":21,"merged":[[0,1,0,4],[1,1,1,2],[7,1,8,1],[7,2,8,2],[10,1,10,5],[12,1,12,5],[14,1,14,5],[15,1,15,2],[15,4,15,5],[16,1,16,2],[16,4,16,5],[18,1,18,5],[19,1,19,2],[19,4,19,5],[20,1,20,2],[20,4,20,5]]}
[null,"Φόρμα προσφοράς κατασκευής"]
[null,"Πληροφορίες κατόχου",null,null,"Πληροφορίες εργολάβου"]
[null,"Όνομα","Εισαγάγετε το όνομα ιδιοκτήτη σε αυτό το κελί",null,"Εταιρεία","Εισαγάγετε το όνομα εταιρείας του εργολάβου σε αυτό το κελί"]
[null,"Διεύθυνση","Εισαγάγετε τη διεύθυνση του ιδιοκτήτη σε αυτό το κελί",null,"Όνομα","Εισαγάγετε το όνομα του εργολάβου σε αυτό το κελί"]
[null,"Πόλη, Νομός Ταχυδρομικός κώδικας","Εισαγάγετε την πόλη, τον νομό και τον ταχυδρομικό κώδικα του ιδιοκτήτη σε αυτό το κελί",null,"Διεύθυνση","Εισαγάγετε τη διεύθυνση του εργολάβου σε αυτό το κελί"]
[null,"Τηλέφωνο","Εισαγάγετε τον αριθμό τηλεφώνου του ιδιοκτήτη σε αυτό το κελί",null,"Πόλη, Νομός Ταχυδρομικός κώδικας","Εισαγάγετε την πόλη, τον νομό και τον ταχυδρομικό κώδικα του εργολάβου σε αυτό το κελί"]
[null,"Ηλεκτρονική αλληλογραφία","Εισαγάγετε τη διεύθυνση ηλεκτρονικού ταχυδρομείου του ιδιοκτήτη σε αυτό το κελί",null,"Τηλέφωνο","Εισαγάγετε τον αριθμό τηλεφώνου του εργολάβου σε αυτό το κελί"]
[null,"Όνομα έργου","Εισαγάγετε το όνομα του έργου σε αυτό το κελί",null,"Ηλεκτρονική αλληλογραφία","Εισαγάγετε τη διεύθυνση ηλεκτρονικού ταχυδρομείου του εργολάβου σε αυτό το κελί "]
[{"$nulls":4},"Ημερομηνία ολοκλήρωσης","Εισαγάγετε την ημερομηνία ολοκλήρωσης σε αυτό το κελί"]
[null,"Αντικείμενο εργασιών"]
[null,"Το εύρος εργασίας του έργου βρίσκεται εδώ. Πληκτρολογήστε όλες τις προδιαγραφές που θέλετε. \n\nΔείγμα κειμένου: Αυτό θα είναι ένα εικονικό έργο για τη δημιουργία ενός μεγάλου συνόλου σκαλοπατιών. Θα χρησιμοποιήσουμε μόνο ξυλεία 2x4 και 2x8, καθώς και στηρίγματα δοκών, για να κατασκευάσουμε το πλαίσιο. Τα σκαλιά θα κοπούν από το υλικό 2x4. Θα χρησιμοποιηθούν βίδες όχι μικρότερες των 2\".  Τα καρφιά δεν θα κοστίζουν λιγότερο από 10 λεπτά. Το βάρος σχεδίασης πρέπει να περιλαμβάνει τουλάχιστον 500 λίβρες ανά σκαλοπάτι. Τα σκαλοπάτια θα είναι ισοστάθμια με αυτά του σπιτιού. Ένα σκαλοπάτι θα συνδεθεί στο σπίτι. Ο εργολάβος θα αναλάβει την εκκαθάριση."]
[null,"Δεν περιλαμβάνεται"]
[null,"Εδώ θα βρείτε λεπτομέρειες του έργου που δεν περιλαμβάνονται. Πληκτρολογήστε όλα όσα δεν περιλαμβάνονται σε αυτήν την προσφορά. \n\nΔείγμα κειμένου: Δεν θα εγκατασταθούν ράγες. Έδαφος για προετοιμασία από τον ιδιοκτήτη. Σκάλες που θα βαφούν από τον ιδιοκτήτη."]
[null,"Πρόταση εταιρείας"]
[null,"Η πρόταση της εταιρείας προστίθεται εδώ. Πληκτρολογήστε μια επισκόπηση της πρότασης, συμπεριλαμβανομένων των ατόμων που προτείνουν την εργασία, της αναμενόμενης ημερομηνίας ολοκλήρωσης και του ποσού της πρότασης.\n\nΔείγμα κειμένου: Εμείς, [επωνυμία εταιρείας], προτείνουμε το παραπάνω πεδίο εργασίας, το οποίο θα ολοκληρωθεί έως τις [ημερομηνία ολοκλήρωσης] με κόστος [συνολικό ποσό]."]
[]
[null,"Υποβλήθηκε από (Αντιπρόσωπος εταιρείας)",null,null,"Ημερομηνία"]
[null,"Αποδοχή κατόχου"]
[null,"Η αποδοχή του κατόχου προστίθεται εδώ. Πληκτρολογήστε το όνομα του ιδιοκτήτη σε μια δήλωση επιβεβαίωσης που περιλαμβάνει την ημερομηνία ολοκλήρωσης και το συνολικό ποσό που αναφέρεται στην πρόταση της εταιρείας. \n\nΔείγμα κειμένου: Εγώ, [όνομα ιδιοκτήτη], αποδέχομαι το παραπάνω πεδίο εργασίας, που προτείνεται να ολοκληρωθεί έως τις [ημερομηνία ολοκλήρωσης] με κόστος [συνολικό ποσό]."]
[]
[null,"Υποβλήθηκε από (ιδιοκτήτης οικίας ή εξουσιοδοτημένος αντιπρόσωπος)",null,null,"Ημερομηνία"]

{"sheet":"Δεδομένα γραφήματος","index":1,"n_rows":7,"n_cols":3,"rows_kept":7,"hidden":true}
[]
[null,null,"Άθροισμα"]
[null,{"$f":"INDEX(BidItems[#Data],MATCH(1,BidItems[Κατάταξη κόστους],0),2)","v":"Χρεώσεις εργατών"},{"$f":"INDEX(BidItems[#Data],MATCH(1,BidItems[Κατάταξη κόστους],0),4)","v":200}]
[null,{"$f":"INDEX(BidItems[#Data],MATCH(2,BidItems[Κατάταξη κόστους],0),2)","v":"Ξυλεία 2x4x10"},{"$f":"INDEX(BidItems[#Data],MATCH(2,BidItems[Κατάταξη κόστους],0),4)","v":99.39999999999999}]
[null,{"$f":"INDEX(BidItems[#Data],MATCH(3,BidItems[Κατάταξη κόστους],0),2)","v":"Στηρίγματα δοκών"},{"$f":"INDEX(BidItems[#Data],MATCH(3,BidItems[Κατάταξη κόστους],0),4)","v":74.7}]
[null,{"$f":"INDEX(BidItems[#Data],MATCH(4,BidItems[Κατάταξη κόστους],0),2)","v":"Ξυλεία 2x8x10"},{"$f":"INDEX(BidItems[#Data],MATCH(4,BidItems[Κατάταξη κόστους],0),4)","v":33.75}]
[null,{"$f":"INDEX(BidItems[#Data],MATCH(5,BidItems[Κατάταξη κόστους],0),2)","v":"Ζεύγος γαντιών, δέρμα"},{"$f":"INDEX(BidItems[#Data],MATCH(5,BidItems[Κατάταξη κόστους],0),4)","v":15.5}]

{"sheet":"Ανάλυση κόστους","index":2,"n_rows":14,"n_cols":6,"rows_kept":14,"merged":[[0,1,0,4],[1,1,1,4]]}
[null,"Ανάλυση κόστους",{"$nulls":3}," "]
[null,"Λίστα υλικών και δαπανών"]
[null,"Ποσ.","Περιγραφή","Κόστος","Άθροισμα","Κατάταξη κόστους"]
[null,5,"Ξυλεία 2x8x10",{"v":6.75,"d":"6.75 €"},{"$f":"IFERROR(BidItems[[#This Row],[Κόστος]]*BidItems[[#This Row],[Ποσ.]], \"\")","v":{"v":33.75,"d":"33.75 €"}},{"$f":"_xlfn.RANK.EQ(BidItems[[#This Row],[Άθροισμα]],BidItems[Άθροισμα])","v":4}]
[null,20,"Ξυλεία 2x4x10",{"v":4.97,"d":"4.97 €"},{"$f":"IFERROR(BidItems[[#This Row],[Κόστος]]*BidItems[[#This Row],[Ποσ.]], \"\")","v":{"v":99.39999999999999,"d":"99.40 €"}},{"$f":"_xlfn.RANK.EQ(BidItems[[#This Row],[Άθροισμα]],BidItems[Άθροισμα])","v":2}]
[null,30,"Στηρίγματα δοκών",{"v":2.49,"d":"2.49 €"},{"$f":"IFERROR(BidItems[[#This Row],[Κόστος]]*BidItems[[#This Row],[Ποσ.]], \"\")","v":{"v":74.7,"d":"74.70 €"}},{"$f":"_xlfn.RANK.EQ(BidItems[[#This Row],[Άθροισμα]],BidItems[Άθροισμα])","v":3}]
[null,2,"Κουτί με βίδες, 2 ίντσες",{"v":6.67,"d":"6.67 €"},{"$f":"IFERROR(BidItems[[#This Row],[Κόστος]]*BidItems[[#This Row],[Ποσ.]], \"\")","v":{"v":13.34,"d":"13.34 €"}},{"$f":"_xlfn.RANK.EQ(BidItems[[#This Row],[Άθροισμα]],BidItems[Άθροισμα])","v":6}]
[null,2,"Κουτί με καρφιά, 10 λεπτά",{"v":3.25,"d":"3.25 €"},{"$f":"IFERROR(BidItems[[#This Row],[Κόστος]]*BidItems[[#This Row],[Ποσ.]], \"\")","v":{"v":6.5,"d":"6.50 €"}},{"$f":"_xlfn.RANK.EQ(BidItems[[#This Row],[Άθροισμα]],BidItems[Άθροισμα])","v":7}]
[null,2,"Ζεύγος γαντιών, δέρμα",{"v":7.75,"d":"7.75 €"},{"$f":"IFERROR(BidItems[[#This Row],[Κόστος]]*BidItems[[#This Row],[Ποσ.]], \"\")","v":{"v":15.5,"d":"15.50 €"}},{"$f":"_xlfn.RANK.EQ(BidItems[[#This Row],[Άθροισμα]],BidItems[Άθροισμα])","v":5}]
[null,2,"Χρεώσεις εργατών",{"v":100,"d":"100.00 €"},{"$f":"IFERROR(BidItems[[#This Row],[Κόστος]]*BidItems[[#This Row],[Ποσ.]], \"\")","v":{"v":200,"d":"200.00 €"}},{"$f":"_xlfn.RANK.EQ(BidItems[[#This Row],[Άθροισμα]],BidItems[Άθροισμα])","v":1}]
[4,null,null,"Μερικό άθροισμα",{"$f":"SUBTOTAL(109,BidItems[Άθροισμα])","v":{"v":443.18999999999994,"d":"443.19 €"}}]
[5,null,null,"Φορολογικός συντελεστής",{"v":0.075,"d":"7.50%"}]
[{"$nulls":3},"Φόρος",{"$f":"IFERROR(ΦορολογικόςΣυντελεστής*BidItems[[#Totals],[Άθροισμα]], \"\")","v":{"v":33.23924999999999,"d":"33.24 €"}}]
[{"$nulls":3},"Γενικό σύνολο",{"$f":"IFERROR(Φόρος+BidItems[[#Totals],[Άθροισμα]], \"\")","v":{"v":476.4292499999999,"d":"476.43 €"}}]

{"sheet":"Σύνοψη κόστους προσφοράς","index":3,"n_rows":3,"n_cols":4,"rows_kept":3}
[null,"Σύνοψη κόστους προσφοράς"]
[null,"Ανάλυση υλικών και κόστους",null,"Σημειώσεις"]
[null,"Γράφημα πίτας που εμφανίζει τα πρώτα 5 έξοδα ανά υλικό. Τα δεδομένα βασίζονται στον πίνακα Στοιχεία προσφοράς στο φύλλο εργασίας Ανάλυση κόστους",null,"Εισαγωγή \"Σημειώσεων\" σε αυτό το κελί."]